[Event "SS Manhem Chess Week 2019 Goteborg Open"]
[Site "Molnlycke kulturhus, Biblioteksgatan 2, Molnlycke, Sweden"]
[Date "2019.08.18"]
[Round "7.14"]
[White "Ask, Josef"]
[Black "Mitra, Akash"]
[Result "1/2-1/2"]
[TimeControl "15 minutes + 5 seconds per move from move one (Round 1 - 4) / 90 minutes + 30 seconds per move from move one (Round 5 - 8)"]
[WhiteTitle "FM"]
[WhiteFideId "1704583"]
[BlackFideId "1726714"]
[WhiteElo "2136"]
[BlackElo "1937"]

1. Nf3 {[%clk 01:30:46]} {[%emt 00:09:07]} Nf6 {[%clk 01:27:17]} 2. g3 {[%clk
01:31:09]} {[%emt 00:03:50]} g6 {[%clk 01:27:29]} 3. Bg2 {[%clk 01:31:27]}
{[%emt 00:00:30]} Bg7 {[%clk 01:27:54]} 4. O-O {[%clk 01:31:42]} {[%emt
00:00:19]} O-O {[%clk 01:28:18]} 5. d3 {[%clk 01:31:56]} {[%emt 00:00:23]} d5
{[%clk 01:28:00]} {[%emt 00:00:48]} 6. Nbd2 {[%clk 01:32:09]} {[%emt 00:00:17]}
b6 {[%clk 01:27:13]} {[%emt 00:01:18]} 7. e4 {[%clk 01:30:26]} {[%emt
00:02:12]} Bb7 {[%clk 01:26:46]} {[%emt 00:00:56]} 8. e5 {[%clk 01:29:41]}
{[%emt 00:01:15]} Nfd7 {[%clk 01:24:12]} {[%emt 00:03:04]} 9. Re1 {[%clk
01:28:09]} {[%emt 00:02:02]} e6 {[%clk 01:18:57]} {[%emt 00:05:46]} 10. Nf1
{[%clk 01:26:53]} {[%emt 00:01:46]} c5 {[%clk 01:18:58]} {[%emt 00:00:29]} 11.
h4 {[%clk 01:26:31]} {[%emt 00:00:51]} Nc6 {[%clk 01:18:48]} {[%emt 00:00:40]}
12. Bf4 {[%clk 01:23:24]} {[%emt 00:03:37]} Qe7 {[%clk 01:09:15]} {[%emt
00:10:02]} 13. N1h2 {[%clk 01:20:07]} {[%emt 00:03:48]} Rae8 {[%clk 01:06:25]}
{[%emt 00:03:20]} 14. Ng4 {[%clk 01:12:44]} {[%emt 00:07:54]} f6 {[%clk
01:02:42]} {[%emt 00:04:12]} 15. exf6 {[%clk 01:11:15]} {[%emt 00:01:59]} Nxf6
{[%clk 01:02:22]} {[%emt 00:00:50]} 16. Ng5 {[%clk 01:10:14]} {[%emt 00:01:31]}
Nxg4 {[%clk 00:51:45]} {[%emt 00:11:07]} 17. Qxg4 {[%clk 01:07:49]} {[%emt
00:02:56]} Bc8 {[%clk 00:51:19]} {[%emt 00:00:55]} 18. c3 {[%clk 01:01:19]}
{[%emt 00:07:00]} h6 {[%clk 00:48:41]} {[%emt 00:03:08]} 19. Nh3 {[%clk
00:58:56]} {[%emt 00:02:53]} Qf6 {[%clk 00:47:00]} {[%emt 00:02:11]} 20. Qe2
{[%clk 00:56:52]} {[%emt 00:02:34]} Kh7 {[%clk 00:45:54]} {[%emt 00:01:36]} 21.
Bd6 {[%clk 00:52:29]} {[%emt 00:04:54]} Rf7 {[%clk 00:42:39]} {[%emt 00:03:43]}
22. Bf4 {[%clk 00:51:07]} {[%emt 00:01:55]} Rfe7 {[%clk 00:41:30]} {[%emt
00:01:38]} 23. Rad1 {[%clk 00:48:25]} {[%emt 00:03:12]} e5 {[%clk 00:41:04]}
{[%emt 00:00:56]} 24. Be3 {[%clk 00:45:48]} {[%emt 00:03:08]} Qd6 {[%clk
00:37:57]} {[%emt 00:03:35]} 25. Qf3 {[%clk 00:40:20]} {[%emt 00:06:00]}
1/2-1/2

[Event "SS Manhem Chess Week 2019 Goteborg Open"]
[Site "Molnlycke kulturhus, Biblioteksgatan 2, Molnlycke, Sweden"]
[Date "2019.08.18"]
[Round "7.15"]
[White "Troberg Eskola, Love"]
[Black "Knutsson, Hakan"]
[Result "1-0"]
[TimeControl "15 minutes + 5 seconds per move from move one (Round 1 - 4) / 90 minutes + 30 seconds per move from move one (Round 5 - 8)"]
[WhiteFideId "1724185"]
[BlackFideId "1706810"]
[WhiteElo "2134"]
[BlackElo "1848"]

1. Nf3 {[%clk 01:30:40]} {[%emt 00:00:20]} Nf6 {[%clk 01:30:49]} {[%emt
00:00:11]} 2. b3 {[%clk 01:31:00]} {[%emt 00:00:10]} e6 {[%clk 01:29:02]}
{[%emt 00:02:17]} 3. Bb2 {[%clk 01:31:21]} {[%emt 00:00:08]} d5 {[%clk
01:29:07]} {[%emt 00:00:25]} 4. g3 {[%clk 01:31:30]} {[%emt 00:00:22]} Be7
{[%clk 01:28:21]} {[%emt 00:01:16]} 5. Bg2 {[%clk 01:31:48]} {[%emt 00:00:12]}
O-O {[%clk 01:28:37]} {[%emt 00:00:14]} 6. O-O {[%clk 01:32:02]} {[%emt
00:00:16]} b6 {[%clk 01:27:47]} {[%emt 00:01:20]} 7. c4 {[%clk 01:31:37]}
{[%emt 00:00:54]} Bb7 {[%clk 01:24:52]} {[%emt 00:03:25]} 8. Qc2 {[%clk
01:03:00]} {[%emt 00:29:07]} Nbd7 {[%clk 01:21:22]} {[%emt 00:04:00]} 9. cxd5
{[%clk 00:57:37]} {[%emt 00:05:53]} Bxd5 {[%clk 01:16:25]} {[%emt 00:05:27]} 10.
Nc3 {[%clk 00:57:23]} {[%emt 00:00:44]} Bb7 {[%clk 01:11:53]} {[%emt 00:05:02]}
11. Rac1 {[%clk 00:40:42]} {[%emt 00:17:11]} c5 {[%clk 01:08:41]} {[%emt
00:03:42]} 12. Rfd1 {[%clk 00:35:23]} {[%emt 00:05:49]} Rc8 {[%clk 01:05:33]}
{[%emt 00:03:37]} 13. Qb1 {[%clk 00:31:40]} {[%emt 00:04:12]} Qc7 {[%clk
01:03:48]} {[%emt 00:02:16]} 14. a3 {[%clk 00:29:10]} {[%emt 00:03:01]} Qb8
{[%clk 01:03:52]} {[%emt 00:00:25]} 15. d3 {[%clk 00:28:45]} {[%emt 00:00:55]}
h6 {[%clk 01:02:25]} {[%emt 00:01:57]} 16. Ba1 {[%clk 00:28:16]} {[%emt
00:00:59]} c4 {[%clk 00:56:06]} {[%emt 00:06:49]} 17. bxc4 {[%clk 00:28:01]}
{[%emt 00:00:46]} Bxa3 {[%clk 00:56:27]} {[%emt 00:00:09]} 18. Bb2 {[%clk
00:25:44]} {[%emt 00:02:46]} Bxb2 {[%clk 00:53:57]} {[%emt 00:03:00]} 19. Qxb2
{[%clk 00:26:07]} {[%emt 00:00:07]} e5 {[%clk 00:50:36]} {[%emt 00:03:51]} 20.
Nd2 {[%clk 00:25:24]} {[%emt 00:01:13]} Bxg2 {[%clk 00:50:06]} {[%emt
00:01:00]} 21. Kxg2 {[%clk 00:25:48]} {[%emt 00:00:06]} Nc5 {[%clk 00:47:03]}
{[%emt 00:03:33]} 22. Ra1 {[%clk 00:24:54]} {[%emt 00:01:24]} Rfd8 {[%clk
00:45:30]} {[%emt 00:02:03]} 23. f3 {[%clk 00:23:21]} {[%emt 00:02:03]} Rd7
{[%clk 00:43:01]} {[%emt 00:02:59]} 24. Ra3 {[%clk 00:23:06]} {[%emt 00:00:45]}
Ne6 {[%clk 00:39:22]} {[%emt 00:04:09]} 25. Rda1 {[%clk 00:22:54]} {[%emt
00:00:42]} Nd4 {[%clk 00:39:05]} {[%emt 00:00:47]} 26. Nb3 {[%clk 00:20:48]}
{[%emt 00:02:37]} Nxb3 {[%clk 00:33:50]} {[%emt 00:05:45]} 27. Qxb3 {[%clk
00:20:34]} {[%emt 00:00:44]} Rb7 {[%clk 00:33:36]} {[%emt 00:00:42]} 28. Nb5
{[%clk 00:16:47]} {[%emt 00:04:18]} a5 {[%clk 00:33:20]} {[%emt 00:00:46]} 29.
Nc3 {[%clk 00:15:00]} {[%emt 00:02:17]} Nd7 {[%clk 00:33:12]} {[%emt 00:00:38]}
30. Rb1 {[%clk 00:14:22]} {[%emt 00:01:08]} Nc5 {[%clk 00:30:50]} {[%emt
00:02:52]} 31. Qc2 {[%clk 00:13:52]} {[%emt 00:01:00]} Qd6 {[%clk 00:30:16]}
{[%emt 00:01:03]} 32. Ra2 {[%clk 00:13:28]} {[%emt 00:00:55]} Qc6 {[%clk
00:28:02]} {[%emt 00:02:44]} 33. Rb5 {[%clk 00:12:14]} {[%emt 00:01:44]} f6
{[%clk 00:25:36]} {[%emt 00:02:56]} 34. Rab2 {[%clk 00:12:20]} {[%emt
00:00:24]} Ne6 {[%clk 00:25:13]} {[%emt 00:00:52]} 35. Qb1 {[%clk 00:12:10]}
{[%emt 00:00:40]} Rcb8 {[%clk 00:18:18]} {[%emt 00:07:26]} 36. Nd5 {[%clk
00:12:28]} {[%emt 00:00:12]} Kf7 {[%clk 00:18:10]} {[%emt 00:00:37]} 37. Rxb6
{[%clk 00:11:20]} {[%emt 00:01:39]} Rxb6 {[%clk 00:18:27]} {[%emt 00:00:13]} 38.
Rxb6 {[%clk 00:11:25]} {[%emt 00:00:25]} Rxb6 {[%clk 00:18:49]} {[%emt
00:00:07]} 39. Qxb6 {[%clk 00:09:42]} {[%emt 00:02:14]} Qxb6 {[%clk 00:19:11]}
{[%emt 00:00:07]} 40. Nxb6 {[%clk 00:10:08]} {[%emt 00:00:05]} Ke7 {[%clk
00:18:45]} {[%emt 00:00:56]} 41. Kf2 {[%clk 00:07:53]} {[%emt 00:02:45]} Kd6
{[%clk 00:18:50]} {[%emt 00:00:25]} 42. Na4 {[%clk 00:07:29]} {[%emt 00:00:53]}
Nc5 {[%clk 00:18:56]} {[%emt 00:00:24]} 43. Nxc5 {[%clk 00:06:31]} {[%emt
00:01:29]} Kxc5 {[%clk 00:18:59]} {[%emt 00:00:26]} 44. Ke3 {[%clk 00:06:30]}
{[%emt 00:00:29]} f5 {[%clk 00:16:55]} {[%emt 00:02:36]} 45. Kd2 {[%clk
00:06:29]} {[%emt 00:00:30]} e4 {[%clk 00:14:15]} {[%emt 00:03:11]} 46. fxe4
{[%clk 00:06:09]} {[%emt 00:00:50]} fxe4 {[%clk 00:14:29]} {[%emt 00:00:16]} 47.
Kc3 {[%clk 00:06:15]} {[%emt 00:00:24]} 1-0

[Event "SS Manhem Chess Week 2019 Goteborg Open"]
[Site "Molnlycke kulturhus, Biblioteksgatan 2, Molnlycke, Sweden"]
[Date "2019.08.18"]
[Round "7.16"]
[White "Eriksson, Kristian"]
[Black "Hamilton, Olov"]
[Result "1-0"]
[TimeControl "15 minutes + 5 seconds per move from move one (Round 1 - 4) / 90 minutes + 30 seconds per move from move one (Round 5 - 8)"]
[WhiteFideId "1705172"]
[BlackFideId "1723677"]
[WhiteElo "2113"]
[BlackElo "1874"]

1. e4 {[%clk 01:30:54]} {[%emt 00:00:05]} c5 {[%clk 01:30:57]} {[%emt
00:00:04]} 2. Nf3 {[%clk 01:30:55]} {[%emt 00:00:29]} d6 {[%clk 01:31:24]}
{[%emt 00:00:03]} 3. d4 {[%clk 01:31:11]} {[%emt 00:00:13]} cxd4 {[%clk
01:31:49]} {[%emt 00:00:05]} 4. Nxd4 {[%clk 01:31:35]} {[%emt 00:00:06]} Nf6
{[%clk 01:32:14]} {[%emt 00:00:04]} 5. Nc3 {[%clk 01:31:56]} {[%emt 00:00:08]}
a6 {[%clk 01:32:38]} {[%emt 00:00:09]} 6. Bg5 {[%clk 01:31:18]} {[%emt
00:01:07]} e6 {[%clk 01:33:03]} {[%emt 00:00:05]} 7. Qf3 {[%clk 01:30:46]}
{[%emt 00:01:00]} Qc7 {[%clk 01:33:19]} {[%emt 00:00:15]} 8. Bxf6 {[%clk
01:22:26]} {[%emt 00:08:51]} gxf6 {[%clk 01:33:42]} {[%emt 00:00:07]} 9. Qxf6
{[%clk 01:18:26]} {[%emt 00:04:29]} Rg8 {[%clk 01:34:07]} {[%emt 00:00:06]} 10.
O-O-O {[%clk 01:18:00]} {[%emt 00:00:56]} Be7 {[%clk 01:32:58]} {[%emt
00:01:39]} 11. Qf3 {[%clk 01:17:29]} {[%emt 00:01:00]} b5 {[%clk 01:33:20]}
{[%emt 00:00:10]} 12. a3 {[%clk 01:10:01]} {[%emt 00:07:57]} Nd7 {[%clk
01:31:52]} {[%emt 00:01:58]} 13. g3 {[%clk 01:03:29]} {[%emt 00:07:02]} Bb7
{[%clk 01:31:47]} {[%emt 00:00:36]} 14. Bd3 {[%clk 01:01:32]} {[%emt 00:02:26]}
Rg5 {[%clk 01:21:45]} {[%emt 00:10:31]} 15. Nb3 {[%clk 00:53:17]} {[%emt
00:08:46]} Rc8 {[%clk 01:17:08]} {[%emt 00:05:08]} 16. h4 {[%clk 00:50:03]}
{[%emt 00:03:43]} Re5 {[%clk 01:17:18]} {[%emt 00:00:19]} 17. Kb1 {[%clk
00:45:12]} {[%emt 00:05:21]} Nb6 {[%clk 01:03:22]} {[%emt 00:14:27]} 18. Qe2
{[%clk 00:36:04]} {[%emt 00:09:38]} d5 {[%clk 00:56:02]} {[%emt 00:07:50]} 19.
f4 {[%clk 00:34:30]} {[%emt 00:02:04]} Bxa3 {[%clk 00:53:59]} {[%emt 00:02:33]}
20. fxe5 {[%clk 00:32:57]} {[%emt 00:02:03]} Bxb2 {[%clk 00:54:20]} {[%emt
00:00:09]} 21. Nxb5 {[%clk 00:27:27]} {[%emt 00:06:01]} axb5 {[%clk 00:54:28]}
{[%emt 00:00:22]} 22. Bxb5+ {[%clk 00:26:53]} {[%emt 00:01:03]} Ke7 {[%clk
00:53:22]} {[%emt 00:01:35]} 23. Kxb2 {[%clk 00:24:47]} {[%emt 00:02:37]} Qc3+
{[%clk 00:53:44]} {[%emt 00:00:08]} 24. Kb1 {[%clk 00:24:38]} {[%emt 00:00:38]}
Nc4 {[%clk 00:52:16]} {[%emt 00:02:00]} 25. Bxc4 {[%clk 00:22:54]} {[%emt
00:02:14]} dxc4 {[%clk 00:52:00]} {[%emt 00:00:46]} 26. Qd2 {[%clk 00:12:44]}
{[%emt 00:10:39]} cxb3 {[%clk 00:51:16]} {[%emt 00:01:14]} 27. Qxc3 {[%clk
00:04:07]} {[%emt 00:09:07]} Rxc3 {[%clk 00:51:45]} {[%emt 00:00:02]} 28. Kb2
{[%clk 00:04:21]} {[%emt 00:00:16]} Rxc2+ {[%clk 00:50:19]} {[%emt 00:01:56]}
29. Kxb3 {[%clk 00:04:47]} {[%emt 00:00:04]} Bxe4 {[%clk 00:49:30]} {[%emt
00:01:19]} 30. Rhe1 {[%clk 00:04:20]} {[%emt 00:00:56]} Bg6 {[%clk 00:49:38]}
{[%emt 00:00:22]} 31. h5 {[%clk 00:04:28]} {[%emt 00:00:22]} Rg2 {[%clk
00:49:13]} {[%emt 00:00:56]} 32. hxg6 {[%clk 00:04:39]} {[%emt 00:00:20]} Rxg3+
{[%clk 00:49:39]} {[%emt 00:00:04]} 33. Kc4 {[%clk 00:04:50]} {[%emt 00:00:17]}
hxg6 {[%clk 00:49:17]} {[%emt 00:00:54]} 34. Re4 {[%clk 00:04:24]} {[%emt
00:00:55]} Rf3 {[%clk 00:49:16]} {[%emt 00:00:31]} 35. Ra1 {[%clk 00:04:05]}
{[%emt 00:00:49]} Kf8 {[%clk 00:47:37]} {[%emt 00:02:09]} 36. Kd4 {[%clk
00:04:18]} {[%emt 00:00:17]} Kg7 {[%clk 00:46:45]} {[%emt 00:01:21]} 37. Rh1
{[%clk 00:03:58]} {[%emt 00:00:50]} g5 {[%clk 00:45:50]} {[%emt 00:01:25]} 38.
Rg4 {[%clk 00:04:11]} {[%emt 00:00:16]} Kg6 {[%clk 00:45:34]} {[%emt 00:00:48]}
39. Rh8 {[%clk 00:04:12]} {[%emt 00:00:29]} Kf5 {[%clk 00:40:43]} {[%emt
00:05:21]} 40. Rg1 {[%clk 00:03:33]} {[%emt 00:01:09]} Rf4+ {[%clk 00:37:34]}
{[%emt 00:03:39]} 41. Kd3 {[%clk 00:04:00]} {[%emt 00:00:03]} Rf3+ {[%clk
00:33:53]} {[%emt 00:04:12]} 42. Ke2 {[%clk 00:04:05]} {[%emt 00:00:25]} Ra3
{[%clk 00:31:48]} {[%emt 00:02:36]} 43. Rf8 {[%clk 00:03:43]} {[%emt 00:00:50]}
Ra7 {[%clk 00:27:29]} {[%emt 00:04:50]} 44. Rf1+ {[%clk 00:03:27]} {[%emt
00:00:46]} Kg6 {[%clk 00:27:41]} {[%emt 00:00:18]} 45. Rg8+ {[%clk 00:03:49]}
{[%emt 00:00:08]} Kh5 {[%clk 00:24:18]} {[%emt 00:03:53]} 46. Rg1 {[%clk
00:04:02]} {[%emt 00:00:16]} Ra2+ {[%clk 00:24:26]} {[%emt 00:00:24]} 47. Kd3
{[%clk 00:04:17]} {[%emt 00:00:14]} Ra3+ {[%clk 00:24:03]} {[%emt 00:00:55]} 48.
Kc2 {[%clk 00:04:06]} {[%emt 00:00:39]} Rf3 {[%clk 00:22:12]} {[%emt 00:02:21]}
49. R8xg5+ {[%clk 00:04:21]} {[%emt 00:00:15]} Kh6 {[%clk 00:22:26]} {[%emt
00:00:15]} 50. R5g3 {[%clk 00:03:51]} {[%emt 00:00:59]} 1-0

[Event "SS Manhem Chess Week 2019 Goteborg Open"]
[Site "Molnlycke kulturhus, Biblioteksgatan 2, Molnlycke, Sweden"]
[Date "2019.08.18"]
[Round "7.17"]
[White "Ziegler, Nathalie"]
[Black "Pettersson, Anders"]
[Result "0-1"]
[TimeControl "15 minutes + 5 seconds per move from move one (Round 1 - 4) / 90 minutes + 30 seconds per move from move one (Round 5 - 8)"]
[WhiteFideId "1715984"]
[BlackFideId "1715143"]
[WhiteElo "1846"]
[BlackElo "2104"]

1. c4 {[%clk 01:28:28]} {[%emt 00:02:31]} Nf6 {[%clk 01:30:45]} {[%emt
00:00:15]} 2. Nf3 {[%emt 00:00:16]} e6 3. g3 {[%clk 01:29:17]} {[%emt
00:00:03]} d5 {[%clk 01:31:31]} {[%emt 00:00:07]} 4. d4 {[%clk 01:29:23]}
{[%emt 00:00:24]} Be7 {[%clk 01:31:54]} {[%emt 00:00:06]} 5. Bg2 {[%clk
01:29:28]} {[%emt 00:00:27]} O-O {[%clk 01:32:16]} {[%emt 00:00:06]} 6. O-O
{[%clk 01:29:29]} {[%emt 00:00:29]} dxc4 {[%clk 01:32:34]} {[%emt 00:00:13]} 7.
Qc2 {[%clk 01:29:52]} {[%emt 00:00:08]} a6 {[%clk 01:28:46]} {[%emt 00:04:17]}
8. Qxc4 {[%clk 01:30:06]} {[%emt 00:00:16]} b5 {[%clk 01:28:09]} {[%emt
00:01:07]} 9. Qc2 {[%clk 01:28:54]} {[%emt 00:01:39]} Bb7 {[%clk 01:25:38]}
{[%emt 00:03:04]} 10. Bf4 {[%clk 01:19:45]} {[%emt 00:09:39]} Nc6 {[%clk
01:23:08]} {[%emt 00:02:59]} 11. Rd1 {[%clk 00:59:49]} {[%emt 00:20:24]} Bd6
{[%clk 01:17:44]} {[%emt 00:05:56]} 12. Bg5 {[%clk 00:49:33]} {[%emt 00:10:46]}
h6 {[%clk 01:16:37]} {[%emt 00:01:37]} 13. Bxf6 {[%clk 00:49:28]} {[%emt
00:00:35]} Qxf6 {[%clk 01:17:01]} {[%emt 00:00:05]} 14. Nc3 {[%clk 00:49:29]}
{[%emt 00:00:29]} Qe7 {[%clk 01:10:36]} {[%emt 00:06:55]} 15. a3 {[%clk
00:48:24]} {[%emt 00:01:36]} Na5 {[%clk 01:06:48]} {[%emt 00:04:17]} 16. Ne4
{[%clk 00:33:19]} {[%emt 00:15:35]} Rac8 {[%clk 01:03:39]} {[%emt 00:03:39]} 17.
Nc5 {[%clk 00:32:13]} {[%emt 00:01:36]} Bxc5 {[%clk 01:03:33]} {[%emt
00:00:36]} 18. dxc5 {[%clk 00:32:27]} {[%emt 00:00:16]} Bd5 {[%clk 00:57:41]}
{[%emt 00:06:22]} 19. Qc3 {[%clk 00:29:45]} {[%emt 00:03:12]} Nc6 {[%clk
00:48:11]} {[%emt 00:10:00]} 20. b4 {[%clk 00:28:19]} {[%emt 00:01:56]} Rcd8
{[%clk 00:47:20]} {[%emt 00:01:21]} 21. Rac1 {[%clk 00:25:09]} {[%emt
00:03:39]} f6 {[%clk 00:40:03]} {[%emt 00:07:46]} 22. Nh4 {[%clk 00:19:01]}
{[%emt 00:06:39]} Qf7 {[%clk 00:38:47]} {[%emt 00:01:46]} 23. Bxd5 {[%clk
00:17:00]} {[%emt 00:02:32]} exd5 {[%clk 00:37:53]} {[%emt 00:01:24]} 24. Nf3
{[%clk 00:16:37]} {[%emt 00:00:53]} Rfe8 {[%clk 00:35:07]} {[%emt 00:03:16]} 25.
e3 {[%clk 00:16:21]} {[%emt 00:00:46]} Qh5 {[%clk 00:32:29]} {[%emt 00:03:08]}
26. Kg2 {[%clk 00:16:31]} {[%emt 00:00:20]} Ne5 {[%clk 00:30:38]} {[%emt
00:02:22]} 27. Nxe5 {[%clk 00:14:03]} {[%emt 00:02:57]} fxe5 {[%clk 00:30:12]}
{[%emt 00:00:56]} 28. Rd2 {[%clk 00:13:55]} {[%emt 00:00:38]} c6 {[%clk
00:30:20]} {[%emt 00:00:22]} 29. Qc2 {[%clk 00:13:26]} {[%emt 00:00:58]} Rf8
{[%clk 00:28:47]} {[%emt 00:02:04]} 30. Qd1 {[%clk 00:13:35]} {[%emt 00:00:21]}
Qf5 {[%clk 00:27:26]} {[%emt 00:01:51]} 31. Qe2 {[%clk 00:13:15]} {[%emt
00:00:50]} a5 {[%clk 00:26:33]} {[%emt 00:01:23]} 32. Qd3 {[%clk 00:11:17]}
{[%emt 00:02:27]} Qf3+ {[%clk 00:25:37]} {[%emt 00:01:26]} 33. Kg1 {[%clk
00:11:45]} {[%emt 00:00:03]} axb4 {[%clk 00:25:51]} {[%emt 00:00:17]} 34. axb4
{[%clk 00:12:11]} {[%emt 00:00:04]} Qg4 {[%clk 00:25:43]} {[%emt 00:00:37]} 35.
Qc3 {[%clk 00:12:27]} {[%emt 00:00:14]} Qf5 {[%clk 00:24:35]} {[%emt 00:01:38]}
36. Qd3 {[%clk 00:11:25]} {[%emt 00:01:33]} Qg4 {[%clk 00:23:00]} {[%emt
00:02:06]} 37. Qc3 {[%clk 00:11:40]} {[%emt 00:00:15]} Qe4 {[%clk 00:22:50]}
{[%emt 00:00:39]} 38. Ra1 {[%clk 00:10:45]} {[%emt 00:01:25]} Ra8 {[%clk
00:23:14]} {[%emt 00:00:06]} 39. Ra3 {[%clk 00:07:52]} {[%emt 00:03:23]} d4
{[%clk 00:15:28]} {[%emt 00:08:16]} 40. Qb3+ {[%clk 00:08:15]} {[%emt
00:00:07]} Kh8 {[%clk 00:15:44]} {[%emt 00:00:13]} 41. Rda2 {[%clk 00:08:11]}
{[%emt 00:00:34]} Rad8 {[%clk 00:13:09]} {[%emt 00:03:05]} 42. exd4 {[%clk
00:07:39]} {[%emt 00:01:02]} exd4 {[%clk 00:13:08]} {[%emt 00:00:31]} 43. Qd3
{[%clk 00:07:26]} {[%emt 00:00:43]} Qe1+ {[%clk 00:11:14]} {[%emt 00:02:24]} 44.
Kg2 {[%clk 00:07:55]} Qxb4 {[%clk 00:11:36]} {[%emt 00:00:09]} 45. Ra7 {[%clk
00:08:16]} {[%emt 00:00:09]} Qxc5 {[%clk 00:10:31]} {[%emt 00:01:35]} 46. Qg6
{[%clk 00:08:37]} {[%emt 00:00:10]} Qe5 {[%clk 00:10:11]} {[%emt 00:00:50]} 47.
Re2 {[%clk 00:08:22]} {[%emt 00:00:44]} Qf6 {[%clk 00:10:27]} {[%emt 00:00:14]}
48. Qg4 {[%clk 00:07:25]} {[%emt 00:01:28]} Rfe8 {[%clk 00:09:29]} {[%emt
00:01:27]} 49. Rxe8+ {[%clk 00:06:58]} {[%emt 00:00:58]} Rxe8 {[%clk 00:09:57]}
{[%emt 00:00:01]} 50. Qd7 {[%clk 00:07:27]} {[%emt 00:00:01]} Rd8 {[%clk
00:09:20]} {[%emt 00:01:06]} 51. Qc7 {[%clk 00:06:37]} {[%emt 00:01:20]} d3
{[%clk 00:08:34]} {[%emt 00:01:16]} 52. Ra1 {[%clk 00:05:38]} {[%emt 00:01:29]}
Qd6 {[%clk 00:08:33]} {[%emt 00:00:31]} 53. Qa5 {[%clk 00:03:43]} {[%emt
00:02:26]} d2 {[%clk 00:08:23]} {[%emt 00:00:40]} 54. Rd1 {[%clk 00:04:10]}
{[%emt 00:00:02]} b4 {[%clk 00:08:46]} {[%emt 00:00:08]} 55. Qb6 {[%clk
00:03:53]} {[%emt 00:00:47]} c5 {[%clk 00:08:53]} {[%emt 00:00:23]} 56. Qa7
{[%clk 00:03:41]} {[%emt 00:00:42]} c4 {[%clk 00:09:10]} {[%emt 00:00:12]} 0-1

[Event "SS Manhem Chess Week 2019 Goteborg Open"]
[Site "Molnlycke kulturhus, Biblioteksgatan 2, Molnlycke, Sweden"]
[Date "2019.08.18"]
[Round "7.18"]
[White "Westerlund, Ola"]
[Black "Olsson, William"]
[Result "0-1"]
[TimeControl "15 minutes + 5 seconds per move from move one (Round 1 - 4) / 90 minutes + 30 seconds per move from move one (Round 5 - 8)"]
[WhiteFideId "1712101"]
[BlackFideId "1741721"]
[WhiteElo "1845"]
[BlackElo "2015"]

1. d4 {[%clk 01:22:24]} {[%emt 00:19:48]} d5 {[%clk 01:30:54]} 2. c4 {[%clk
01:22:50]} {[%emt 00:00:10]} c6 {[%clk 01:31:20]} 3. Nf3 {[%clk 01:23:16]}
{[%emt 00:00:08]} Nf6 {[%clk 01:31:46]} 4. Nbd2 {[%clk 01:23:19]} {[%emt
00:00:31]} Bf5 {[%clk 01:30:56]} 5. Nh4 {[%clk 01:23:41]} {[%emt 00:01:29]} Be6
{[%clk 01:30:07]} 6. e3 {[%clk 01:22:41]} {[%emt 00:02:48]} Nbd7 {[%clk
01:29:12]} 7. Qc2 {[%clk 01:16:35]} {[%emt 00:08:02]} Rc8 {[%clk 01:28:47]} 8.
c5 {[%clk 00:42:53]} {[%emt 00:35:07]} Bg4 {[%clk 01:22:13]} 9. h3 {[%clk
00:37:26]} {[%emt 00:13:00]} Bh5 {[%clk 01:22:23]} 10. f4 {[%clk 00:25:33]}
{[%emt 00:12:42]} e6 {[%clk 01:21:40]} 11. Bd3 {[%clk 00:20:02]} {[%emt
00:07:14]} Ne4 {[%clk 01:20:35]} 12. Nhf3 {[%clk 00:16:40]} {[%emt 00:05:28]}
Ng3 {[%clk 01:19:30]} 13. Rg1 {[%clk 00:16:49]} {[%emt 00:01:56]} f5 {[%clk
01:18:27]} {[%emt 00:01:33]} 14. Ne5 {[%clk 00:11:17]} {[%emt 00:06:02]} Nxe5
{[%clk 01:17:37]} {[%emt 00:01:20]} 15. fxe5 {[%clk 00:11:45]} {[%emt
00:00:03]} Be7 {[%clk 01:17:40]} {[%emt 00:00:27]} 16. Nf3 {[%clk 00:11:34]}
{[%emt 00:00:41]} O-O {[%clk 01:17:01]} {[%emt 00:01:09]} 17. Bd2 {[%clk
00:10:09]} {[%emt 00:01:56]} Ne4 {[%clk 01:12:48]} {[%emt 00:04:42]} 18. O-O-O
{[%clk 00:07:49]} {[%emt 00:02:50]} b6 {[%clk 01:10:17]} {[%emt 00:03:02]} 19.
b4 {[%clk 00:02:56]} {[%emt 00:05:24]} a5 {[%clk 01:09:31]} {[%emt 00:01:16]}
20. g4 {[%emt 00:00:29]} fxg4 {[%clk 01:09:26]} {[%emt 00:00:32]} 21. hxg4
{[%clk 00:02:05]} {[%emt 00:01:24]} Bg6 {[%clk 01:09:01]} {[%emt 00:00:55]} 22.
Rdf1 {[%clk 00:02:07]} {[%emt 00:00:28]} axb4 {[%clk 01:02:46]} {[%emt
00:06:45]} 23. Bxb4 {[%clk 00:01:59]} {[%emt 00:00:38]} bxc5 24. dxc5 {[%clk
00:01:24]} Rb8 {[%clk 01:01:40]} {[%emt 00:01:58]} 25. a3 {[%clk 00:00:53]}
{[%emt 00:01:01]} Qc7 {[%clk 01:01:12]} {[%emt 00:00:58]} 26. Nd4 {[%clk
00:00:48]} {[%emt 00:00:35]} Qd7 {[%clk 01:00:56]} {[%emt 00:00:47]} 27. Qa4
{[%clk 00:00:34]} {[%emt 00:00:44]} Nxc5 {[%clk 01:00:05]} {[%emt 00:01:21]} 28.
Qxc6 {[%clk 00:00:49]} {[%emt 00:00:15]} Nxd3+ {[%clk 00:59:55]} {[%emt
00:00:40]} 29. Kd1 {[%clk 00:01:14]} {[%emt 00:00:05]} Nb2+ {[%clk 00:59:06]}
{[%emt 00:01:19]} 0-1